bitfinex/quotes_SOLUSD_20220218
["timestamp","ask_amount","ask_price","bid_price","bid_amount"]
[1645201921778,53.40052066,91.749,91.673,0.25]
[1645201921982,53.40052066,91.749,91.674,5.45]
[1645201922177,53.40052066,91.749,91.676,110.1]
[1645201922376,4.60461684,91.8,91.678,110.1]
[1645201922577,6.0,91.799,91.68,126.4535]
[1645201922879,6.0,91.799,91.691,110.1]
[1645201923176,6.0,91.798,91.698,1.74921062]
[1645201923377,53.08994426,91.815,91.7,189.19]
[1645201923677,6.0,91.814,91.702,176.37]
[1645201923880,6.0,91.814,91.704,176.37]
[1645201924076,53.08994426,91.815,91.703,6.25]
[1645201924077,4.60461684,91.842,91.711,181.92]
[1645201924278,21.15878589,91.843,91.728,110.1]
[1645201924480,14.74321228,91.841,91.741,110.1]
[1645201924678,14.74321228,91.841,91.751,110.1]
[1645201924979,46.1793,91.875,91.751,110.1]
[1645201924980,43.8588825,91.875,91.761,110.1]
[1645201925178,43.8588825,91.875,91.771,110.1]
[1645201925379,43.8588825,91.875,91.773,110.1]
[1645201925579,46.4882656,91.875,91.774,0.25]
[1645201925779,46.4882656,91.875,91.772,0.25]
[1645201925978,2.7293831,91.845,91.772,0.25]
[1645201926179,0.1,91.845,91.772,0.25]
[1645201926576,0.1,91.845,91.772,2.13960174]
[1645201926776,0.1,91.845,91.773,6.0]
[1645201926977,0.1,91.845,91.772,0.25]
[1645201926978,0.1,91.845,91.761,22.9081]
[1645201927180,0.1,91.845,91.762,0.25]
[1645201927181,2.6293831,91.844,91.762,0.25]
[1645201927779,54.85776363,91.843,91.762,0.25]
[1645201928181,2.6293831,91.842,91.761,22.9081]
[1645201928486,2.6293831,91.842,91.74,16.3512]
[1645201928680,2.6293831,91.842,91.704,48.1257]
[1645201928891,33.22232532,91.841,91.706,110.1]
[1645201929085,14.69869382,91.841,91.711,2.6293831]
[1645201929384,54.85776363,91.843,91.712,6.0]
[1645201929588,47.5887,91.84,91.72,16.69681917]
[1645201929791,47.5887,91.84,91.721,6.0]
[1645201929989,0.25,91.839,91.722,0.25]
[1645201930288,0.25,91.839,91.722,110.1]
[1645201930289,14.94871317,91.839,91.722,110.1]
[1645201930489,0.25,91.839,91.73,54.4978]
[1645201930688,0.25,91.839,91.731,6.0]
[1645201930889,0.25,91.839,91.732,1.98224241]
[1645201931189,47.5887,91.84,91.733,6.0]
[1645201931389,63.9417,91.84,91.733,6.0]
[1645201931591,76.7617,91.84,91.734,0.25]
[1645201931788,14.68790831,91.839,91.731,0.25]
[1645201932392,0.25,91.838,91.731,0.25]
[1645201932812,16.3546,91.83,91.73,16.3526]
[1645201932994,110.1,91.836,91.671,23.0072]
[1645201933191,5.38,91.813,91.671,23.0072]
[1645201933390,110.1,91.799,91.65,54.5446]
[1645201933595,12.82,91.8,91.671,1.66615438]
[1645201933793,18.5236315,91.798,91.671,1.66615438]
[1645201933993,41.65368437,91.797,91.671,1.66615438]
[1645201934192,41.65368437,91.797,91.673,110.1]
[1645201934391,41.65368437,91.797,91.674,6.0]
[1645201934592,41.65368437,91.797,91.674,2.6293831]
[1645201934793,41.65368437,91.797,91.675,6.0]
[1645201934994,41.65368437,91.797,91.676,49.1927]
[1645201935193,41.65368437,91.797,91.678,110.1]
[1645201935392,41.65368437,91.797,91.68,110.1]
[1645201935592,0.25,91.796,91.682,110.1]
[1645201935794,41.65368437,91.797,91.685,0.6451823]
[1645201935995,41.65368437,91.797,91.686,110.1]
[1645201936194,41.65368437,91.797,91.688,110.1]
[1645201936398,41.65368437,91.797,91.69,110.1]
[1645201936593,41.65368437,91.797,91.692,110.1]
[1645201936797,41.65368437,91.797,91.693,6.25]
[1645201936995,41.65368437,91.797,91.694,110.1]
[1645201937195,0.25,91.796,91.696,110.1]
[1645201937394,6.25,91.796,91.699,1.66615438]
[1645201937598,41.65368437,91.797,91.701,110.1]
[1645201937794,41.65368437,91.797,91.711,110.1]
[1645201937994,41.65368437,91.797,91.713,110.7451823]
[1645201938194,4.60461684,91.851,91.715,110.1]
[1645201938394,54.3224,91.841,91.717,110.1]
[1645201938595,54.3224,91.841,91.716,53.1642]
[1645201938596,54.3224,91.841,91.719,110.1]
[1645201938795,54.3224,91.841,91.721,110.1]
[1645201938996,54.3224,91.841,91.731,110.1]
[1645201939196,52.24992734,91.84,91.733,110.1]
[1645201939395,52.24992734,91.84,91.732,30.67361143]
[1645201939396,0.25,91.839,91.735,110.1]
[1645201939596,0.25,91.839,91.737,110.1]
[1645201939795,0.25,91.839,91.739,110.1]
[1645201939996,0.25,91.839,91.741,110.1]
[1645201940200,0.25,91.839,91.75,16.3484]
[1645201940396,0.25,91.839,91.751,6.25]
[1645201940596,0.25,91.839,91.744,23.2545]
[1645201940597,63.81992734,91.84,91.71,57.1414831]
[1645201940800,63.81992734,91.84,91.717,6.0]
[1645201941099,110.1,91.819,91.702,24.7245]
[1645201941299,110.1,91.817,91.702,24.7245]
[1645201941499,110.1,91.815,91.702,24.7245]
[1645201941903,110.1,91.815,91.717,0.25]
[1645201942103,110.1,91.813,91.71,16.3566]
[1645201942304,110.1,91.799,91.65,12.82]
[1645201942502,110.1,91.797,91.68,2.71173204]
[1645201942708,18.5236315,91.798,91.668,110.1]
[1645201942906,12.82,91.8,91.69,126.4601]
[1645201942907,3.98406853,91.8,91.69,126.4601]
[1645201943106,75.1756,91.894,91.69,126.4601]
[1645201943107,4.60461684,91.853,91.692,110.1]
[1645201943309,4.60461684,91.853,91.691,11.0]
[1645201943310,59.10691684,91.87,91.701,5.0]
[1645201943609,46.9964,91.871,91.693,6.0]
[1645201943610,46.9964,91.871,91.741,5.0]
[1645201943808,43.60068998,91.86,91.751,110.1]
[1645201944007,43.60068998,91.86,91.75,12.82]
[1645201944008,43.60068998,91.86,91.761,110.1]
[1645201944309,43.60068998,91.86,91.763,110.1]
[1645201944507,43.60068998,91.86,91.765,110.1]
[1645201944711,6.0,91.859,91.767,110.1]
[1645201944915,6.0,91.859,91.768,116.1]
[1645201945211,6.0,91.859,91.77,54.4714]
[1645201945409,59.94888998,91.86,91.771,6.0]
[1645201945609,6.0,91.859,91.761,6.0]
[1645201945811,6.0,91.859,91.76,16.3401]
[1645201946009,59.94888998,91.86,91.761,6.0]
[1645201946212,6.0,91.859,91.762,110.1]
[1645201946411,6.0,91.859,91.76,16.3401]
[1645201946611,6.0,91.859,91.761,6.25]
[1645201948420,6.0,91.859,91.761,0.25]
[1645201948824,110.1,91.849,91.76,16.3401]
[1645201949021,110.1,91.849,91.741,4.71]
[1645201949222,110.1,91.829,91.741,4.71]
[1645201949423,110.1,91.827,91.741,4.71]
[1645201949722,43.79234417,91.828,91.741,4.71]
[1645201950928,110.1,91.827,91.741,4.71]
[1645201951127,110.1,91.809,91.741,4.71]
[1645201951322,110.1,91.807,91.741,4.71]
[1645201953323,16.3611,91.79,91.741,4.71]
[1645201953523,52.05046164,91.789,91.741,4.71]
[1645201954324,16.3627,91.78,91.69,54.5311]
[1645201954525,16.3627,91.78,91.68,16.3627]
[1645201954927,16.3627,91.78,91.682,110.1]
[1645201955126,16.3627,91.78,91.683,11.45]
[1645201955333,16.3627,91.78,91.681,25.97930951]
[1645201955528,32.8211,91.78,91.682,110.1]
[1645201955828,16.4584,91.78,91.684,110.1]
[1645201956032,16.4584,91.78,91.686,110.1]
[1645201956229,6.0,91.779,91.688,110.1]
[1645201956428,6.0,91.779,91.689,0.25]
[1645201957431,6.0,91.779,91.685,6.25]
[1645201957630,6.0,91.779,91.685,110.35]
[1645201957835,6.0,91.779,91.687,110.1]
[1645201958042,6.0,91.779,91.688,116.35]
[1645201958332,6.0,91.779,91.689,0.25]
[1645201959632,6.0,91.779,91.688,116.35]
[1645201959834,6.0,91.779,91.688,110.35]
[1645201960333,6.0,91.779,91.688,0.25]
[1645201960533,110.1,91.778,91.668,110.1]
[1645201960741,12.82,91.77,91.655,5.45]
[1645201960937,158.9522744,91.769,91.645,5.45]
[1645201961132,158.9522744,91.769,91.63,5.45]
[1645201961333,158.9522744,91.769,91.63,18.27]
[1645201961632,158.9522744,91.769,91.648,110.1]
[1645201962133,110.1,91.759,91.65,54.5568]
[1645201962733,110.1,91.759,91.648,101.0195]
[1645201963437,110.1,91.768,91.649,0.25]
[1645201963637,110.1,91.768,91.649,6.25]
[1645201964134,110.1,91.768,91.649,6.0]
[1645201964335,48.8522744,91.769,91.649,6.0]
[1645201964336,16.3677,91.75,91.649,6.0]
[1645201964535,43.3436848,91.749,91.649,6.0]
[1645201964935,43.3436848,91.749,91.648,101.0195]
[1645201965436,110.1,91.748,91.648,101.0195]
[1645201965636,16.3687,91.74,91.648,101.0195]
[1645201966435,16.3687,91.74,91.649,0.25]
[1645201967036,43.3436848,91.749,91.641,0.25]
[1645201967037,16.3704,91.73,91.641,0.25]
[1645201967338,45.52411822,91.729,91.641,0.25]
[1645201967736,6.0,91.728,91.641,0.25]
[1645201967944,6.0,91.728,91.64,16.3681]
[1645201968141,110.1,91.719,91.64,16.3681]
[1645201968340,16.3721,91.72,91.64,16.3681]
[1645201969341,16.3721,91.72,91.641,0.25]
[1645201970546,16.3736,91.71,91.641,0.25]
[1645201970746,41.50386916,91.709,91.641,0.25]
[1645201971345,41.50386916,91.709,91.64,16.3681]
[1645201971549,110.1,91.708,91.64,16.3681]
[1645201971748,16.3757,91.7,91.64,16.3681]
[1645201971945,16.3757,91.7,91.61,54.5814]
[1645201971946,16.3757,91.7,91.62,16.3762]
[1645201972346,110.1,91.699,91.62,16.3762]
[1645201972849,110.1,91.699,91.59,54.5939]
[1645201972850,16.3793,91.68,91.61,16.3797]
[1645201973048,50.40381456,91.679,91.61,16.3797]
[1645201973751,6.0,91.678,91.611,0.25]
[1645201974349,6.0,91.678,91.61,16.3797]
[1645201974748,6.0,91.678,91.611,0.25]
[1645201975356,6.0,91.678,91.61,16.3797]
[1645201975952,6.0,91.678,91.611,0.25]
[1645201976253,6.0,91.678,91.61,16.3797]
[1645201976450,6.0,91.678,91.611,0.25]
[1645201977051,6.0,91.678,91.61,16.3797]
[1645201977255,110.1,91.677,91.61,16.3797]
[1645201977453,110.1,91.677,91.59,16.3818]
[1645201978258,110.1,91.678,91.59,16.3818]
[1645201978455,50.40381456,91.679,91.59,16.3818]
[1645201978757,50.40381456,91.679,91.59,19.0111831]
[1645201978956,50.40381456,91.679,91.591,5.456]
[1645201979254,50.40381456,91.679,91.6,16.3775]
[1645201979456,50.40381456,91.679,91.601,0.25]
[1645201980459,110.1,91.678,91.578,5.456]
[1645201980658,110.1,91.678,91.548,114.6]
[1645201980858,2.6293831,91.677,91.548,114.6]
[1645201981260,110.1,91.675,91.548,114.6]
[1645201981462,16.3874,91.64,91.55,54.6192]
[1645201981675,52.70596696,91.639,91.55,54.6192]
[1645201981882,52.70596696,91.639,91.552,0.25]
[1645201982475,110.1,91.638,91.552,0.25]
[1645201982679,110.1,91.638,91.55,54.6192]
[1645201982680,110.1,91.629,91.551,0.25]
[1645201983678,2.6293831,91.637,91.551,0.25]
[1645201984377,2.6293831,91.637,91.551,110.35]
[1645201984577,52.70596696,91.639,91.553,110.1]
[1645201984779,5.0,91.713,91.552,8.0873831]
[1645201984780,6.0,91.676,91.555,110.1]
[1645201984975,6.0,91.676,91.561,110.1]
[1645201985179,16.3783,91.69,91.563,110.1]
[1645201985375,16.3783,91.69,91.565,110.1]
[1645201985575,16.3783,91.69,91.567,110.1]
[1645201985777,45.42747266,91.689,91.569,110.1]
[1645201985979,48.05685576,91.689,91.574,110.1]
[1645201986177,48.05685576,91.689,91.576,110.1]
[1645201986376,48.05685576,91.689,91.578,110.1]
[1645201986578,48.05685576,91.689,91.58,110.1]
[1645201986777,2.6293831,91.688,91.582,110.1]
[1645201986981,112.7293831,91.688,91.583,0.25]
[1645201987176,112.7293831,91.688,91.575,24.4355]
[1645201987377,2.6293831,91.687,91.576,6.0]
[1645201987578,2.6293831,91.687,91.576,8.6293831]
[1645201987777,2.6293831,91.687,91.577,5.456]
[1645201987979,2.6293831,91.687,91.576,6.0]
[1645201988181,53.58539619,91.669,91.577,110.1]
[1645201988380,53.58539619,91.669,91.578,11.707]
[1645201988779,6.0,91.668,91.578,11.707]
[1645201989080,6.0,91.668,91.578,121.807]
[1645201989778,6.0,91.668,91.578,5.457]
[1645201989985,112.7293831,91.667,91.575,139.0355]
[1645201990180,110.1,91.648,91.561,22.6601]
[1645201990578,2.6293831,91.647,91.561,22.6601]
[1645201991880,16.3892,91.62,91.561,22.6601]
[1645201992079,49.07718933,91.619,91.561,22.6601]
[1645201992279,6.0,91.618,91.55,16.3892]
[1645201992480,6.0,91.618,91.533,24.5384]
[1645201992481,110.1,91.617,91.533,24.5384]
[1645201992880,16.3941,91.59,91.53,16.393]
[1645201993080,110.1,91.609,91.521,23.1278]
[1645201993479,2.6293831,91.608,91.521,23.1278]
[1645201994183,110.1,91.609,91.52,16.396]
[1645201994480,110.1,91.617,91.521,0.25]
[1645201994680,110.1,91.617,91.521,47.6939]
[1645201995181,16.3941,91.6,91.521,47.6939]
[1645201995382,41.44094334,91.599,91.521,47.6939]
[1645201995582,6.0,91.618,91.521,47.6939]
[1645201995583,6.0,91.618,91.522,112.7293831]
[1645201995780,0.38,91.693,91.524,110.1]
[1645201995781,16.6184,91.638,91.524,110.1]
[1645201995981,27.5003831,91.643,91.525,11.708]
[1645201996182,16.389,91.63,91.526,6.0]
[1645201996382,16.389,91.63,91.527,0.25]
[1645201996585,52.99878456,91.629,91.527,0.25]
[1645201996790,55.62816766,91.629,91.527,0.25]
[1645201996987,110.1,91.628,91.527,0.25]
[1645201997189,110.1,91.626,91.527,0.25]
[1645201997387,110.1,91.626,91.523,0.25]
[1645201997587,110.1,91.626,91.522,2.6293831]
[1645201997787,2.6293831,91.625,91.505,8.0893831]
[1645201997989,45.80778547,91.609,91.5,5.46]
[1645201998189,110.1,91.608,91.499,30.1244]
[1645201998389,112.7293831,91.608,91.499,24.6644]
[1645201998589,2.6293831,91.607,91.499,24.6644]
[1645201999395,16.3963,91.58,91.499,24.6644]
[1645201999593,43.06987768,91.579,91.499,24.6644]
[1645201999992,43.06987768,91.579,91.521,0.25]
[1645202000798,43.06987768,91.579,91.501,23.2891]
[1645202000991,110.1,91.578,91.501,23.2891]
[1645202001194,110.1,91.578,91.51,16.3979]
[1645202001393,2.6293831,91.577,91.51,16.3979]
[1645202001599,43.06987768,91.579,91.51,16.3979]
[1645202002396,16.3982,91.57,91.51,16.3979]
[1645202003194,6.0,91.569,91.51,16.3979]
[1645202003894,6.0,91.569,91.511,0.25]
[1645202004093,6.0,91.569,91.51,16.3979]
[1645202006097,159.1641534,91.559,91.5,16.3996]
[1645202006296,164.1841534,91.559,91.46,54.6728]
[1645202006496,2.6293831,91.558,91.461,6.0]
[1645202006696,110.1,91.556,91.461,6.0]
[1645202006996,16.406,91.53,91.47,16.4049]
[1645202007201,48.58879135,91.529,91.459,49.1526]
[1645202008198,110.1,91.519,91.425,5.464]
[1645202008397,110.1,91.519,91.398,110.1]
[1645202008398,110.1,91.519,91.411,52.9886]
[1645202008598,2.6293831,91.518,91.411,47.5236]
[1645202009198,2.6293831,91.518,91.42,16.4135]
[1645202009803,2.6293831,91.518,91.421,0.25]
[1645202010207,2.6293831,91.518,91.42,16.4135]
[1645202010399,110.1,91.509,91.411,47.5236]
[1645202010701,110.1,91.499,91.411,47.5236]
[1645202011101,2.6293831,91.498,91.411,47.5236]
[1645202011502,159.03261018,91.479,91.411,47.5236]
[1645202012511,110.1,91.469,91.39,16.4175]
[1645202012702,110.1,91.469,91.36,54.7314]
[1645202012901,2.6293831,91.468,91.36,54.7314]
[1645202013302,110.1,91.464,91.36,54.7314]
[1645202013502,49.06366965,91.449,91.37,16.4214]
[1645202013702,49.06366965,91.449,91.356,47.9033]
[1645202013703,159.16366965,91.449,91.356,47.9033]
[1645202013903,159.16366965,91.449,91.357,5.5]
[1645202014106,2.6293831,91.448,91.357,5.5]
[1645202014304,49.06366965,91.449,91.357,5.5]
[1645202014305,49.06366965,91.449,91.358,5.47]
[1645202014504,49.06366965,91.449,91.358,8.0993831]
[1645202014906,0.38,91.533,91.39,16.4182]
[1645202015110,12.82,91.5,91.391,5.466]
[1645202015302,110.1,91.497,91.392,0.25]
[1645202015503,110.1,91.497,91.37,110.1]
[1645202015707,110.1,91.497,91.372,110.1]
[1645202015903,110.1,91.497,91.371,11.718]
[1645202015904,110.1,91.495,91.374,110.1]
[1645202016106,110.1,91.495,91.376,110.1]
[1645202016308,110.1,91.489,91.4,16.415]
[1645202016504,53.26911162,91.496,91.401,0.25]
[1645202016704,53.26911162,91.496,91.402,5.466]
[1645202016905,53.26911162,91.496,91.403,0.25]
[1645202017103,53.26911162,91.496,91.404,5.466]
[1645202017305,53.26911162,91.496,91.405,0.25]
[1645202017506,2.6293831,91.527,91.405,0.25]
[1645202017507,2.6293831,91.527,91.406,5.466]
[1645202017708,16.5724,91.55,91.411,110.65]
[1645202017905,1.5275895,91.585,91.421,115.65]
[1645202018104,1.5275895,91.588,91.432,176.37]
[1645202018303,71.286,91.603,91.422,6.25]
[1645202018304,71.286,91.603,91.441,110.1]
[1645202018504,71.286,91.603,91.443,110.1]
[1645202018505,51.63161985,91.587,91.443,110.1]
[1645202018704,51.63161985,91.587,91.461,110.1]
[1645202018903,51.63161985,91.587,91.444,36.365]
[1645202018904,51.63161985,91.587,91.463,110.1]
[1645202019110,25.33966805,91.586,91.464,6.25]
[1645202019306,42.64170804,91.586,91.465,6.25]
[1645202019509,110.1,91.584,91.462,0.25]
[1645202019709,110.1,91.569,91.48,16.3945]
[1645202019906,12.82,91.58,91.45,54.6764]
[1645202019907,110.1,91.567,91.451,5.463]
[1645202020212,5.38,91.553,91.421,22.9451]
[1645202020407,5.38,91.553,91.424,0.25]
[1645202020408,110.1,91.539,91.424,0.25]
[1645202020613,110.1,91.537,91.421,22.9451]
[1645202020810,16.4078,91.53,91.421,22.9451]
[1645202021011,110.1,91.529,91.421,22.9451]
[1645202021311,110.1,91.529,91.424,0.25]
[1645202022011,110.1,91.519,91.43,16.4111]
[1645202022212,44.63154486,91.518,91.43,16.4111]
[1645202022413,110.1,91.517,91.43,16.4111]
[1645202022614,110.1,91.509,91.421,22.9451]
[1645202022838,110.1,91.507,91.421,22.9451]
[1645202023816,110.1,91.499,91.421,22.9451]
[1645202024022,110.1,91.497,91.377,5.466]
[1645202024216,110.1,91.497,91.362,51.2124]
[1645202024618,2.6293831,91.496,91.362,51.2124]
[1645202024822,130.7837236,91.497,91.362,51.2124]
[1645202025020,110.1,91.497,91.362,51.2124]
[1645202025220,110.1,91.495,91.363,6.0]
[1645202025422,110.1,91.489,91.39,16.4172]
[1645202025621,110.1,91.489,91.391,0.25]
[1645202026821,110.1,91.489,91.371,6.0]
[1645202027022,110.1,91.489,91.37,54.7238]
[1645202027023,110.1,91.479,91.38,16.4188]
[1645202027223,110.1,91.477,91.37,54.7238]
[1645202027423,110.1,91.477,91.371,6.0]
[1645202027822,110.1,91.477,91.37,54.7238]
[1645202028423,16.4178,91.47,91.38,16.4206]
[1645202029024,110.1,91.469,91.38,16.4206]
[1645202029225,110.1,91.467,91.38,16.4206]
[1645202029825,110.1,91.467,91.381,0.25]
[1645202030124,110.1,91.476,91.381,0.25]
[1645202030351,16.4217,91.45,91.381,0.25]
[1645202030553,38.81096823,91.449,91.381,0.25]
[1645202030951,38.81096823,91.449,91.39,16.4187]
[1645202031154,38.81096823,91.449,91.391,0.25]
[1645202031553,38.81096823,91.449,91.39,16.4187]
[1645202031954,110.1,91.448,91.365,23.4232]
[1645202032653,16.4228,91.44,91.366,6.0]
[1645202032855,16.4228,91.44,91.365,23.4232]
[1645202033656,6.0,91.439,91.365,23.4232]
[1645202034355,6.0,91.439,91.366,0.25]
[1645202035355,6.0,91.439,91.37,16.4225]
[1645202035558,6.0,91.439,91.371,0.25]
[1645202035756,6.0,91.438,91.371,0.25]
[1645202035958,38.81096823,91.449,91.371,0.25]
[1645202036259,6.0,91.448,91.371,0.25]
[1645202036660,6.0,91.448,91.366,6.25]
[1645202036859,6.0,91.448,91.366,0.25]
[1645202037460,6.0,91.448,91.39,16.4186]
[1645202037662,6.0,91.448,91.391,0.25]
[1645202038363,6.0,91.448,91.4,16.4171]
[1645202038567,6.0,91.448,91.4,16.1671]
[1645202038761,38.81096823,91.449,91.4,16.1671]
[1645202039162,1.5275895,91.513,91.401,110.1]
[1645202039364,1.5275895,91.518,91.401,116.1]
[1645202039563,1.5275895,91.518,91.43,16.4108]
[1645202039764,1.5275895,91.523,91.43,16.4108]
[1645202039967,1.5275895,91.524,91.43,16.4108]
[1645202040163,110.1,91.521,91.43,16.4108]
[1645202040366,16.4123,91.51,91.431,0.25]
[1645202040567,44.90269607,91.522,91.44,16.41]
[1645202040766,44.90269607,91.522,91.441,0.25]
[1645202041587,110.1,91.521,91.441,0.25]
[1645202041766,110.1,91.519,91.422,0.25]
[1645202041964,0.25,91.518,91.422,0.25]
[1645202042263,110.1,91.517,91.422,0.25]
[1645202042463,112.7293831,91.517,91.422,0.25]
[1645202042664,110.1,91.517,91.422,0.25]
[1645202043465,16.4103,91.51,91.43,16.4107]
[1645202044765,110.1,91.509,91.43,16.4107]
[1645202044966,110.1,91.489,91.41,16.4144]
[1645202045166,110.1,91.487,91.41,16.4144]
[1645202045464,110.1,91.487,91.391,24.7406]
[1645202045765,110.1,91.485,91.368,22.5033]
[1645202045967,110.1,91.469,91.368,22.5033]
[1645202046166,110.1,91.459,91.368,22.5033]
[1645202046366,110.1,91.449,91.343,23.8697]
[1645202046564,110.1,91.447,91.343,23.8697]
[1645202047166,2.6293831,91.446,91.343,23.8697]
[1645202047565,110.1,91.447,91.343,23.8697]
[1645202048169,110.1,91.439,91.343,23.8697]
[1645202049467,110.1,91.427,91.343,23.8697]
[1645202049868,2.8793831,91.426,91.343,23.8697]
[1645202050269,0.25,91.426,91.343,23.8697]
[1645202050569,50.41127725,91.428,91.344,0.25]
[1645202050869,0.25,91.427,91.345,5.471]
[1645202051073,0.25,91.427,91.346,0.25]
[1645202051271,0.25,91.427,91.347,5.471]
[1645202051470,0.25,91.427,91.348,0.25]
[1645202051868,0.25,91.427,91.349,5.471]
[1645202052070,50.41127725,91.428,91.35,0.25]
[1645202052271,50.41127725,91.428,91.36,54.7335]
[1645202052470,50.41127725,91.428,91.361,5.72]
[1645202052669,50.41127725,91.428,91.361,0.25]
[1645202053270,6.0,91.427,91.361,0.25]
[1645202053471,6.0,91.427,91.39,16.4197]
[1645202053670,0.25,91.426,91.39,16.4197]
[1645202054870,0.25,91.426,91.391,0.25]
[1645202055870,54.7265,91.49,91.4,16.4175]
[1645202056072,6.0,91.479,91.401,0.25]
[1645202056271,6.0,91.478,91.401,0.25]
[1645202056473,16.4163,91.48,91.401,0.25]
[1645202056674,6.0,91.479,91.401,0.25]
[1645202056875,110.1,91.477,91.401,0.25]
[1645202057074,110.1,91.477,91.39,54.7165]
[1645202057272,110.1,91.477,91.391,0.25]
[1645202057876,110.1,91.469,91.41,16.416]
[1645202058076,0.25,91.468,91.372,47.2063]
[1645202058277,0.25,91.468,91.373,0.25]
[1645202059475,16.419,91.46,91.4,16.4179]
[1645202059675,43.95814534,91.459,91.4,16.4179]
[1645202059878,43.95814534,91.459,91.401,0.25]
[1645202060375,0.25,91.476,91.401,0.25]
[1645202060576,0.25,91.476,91.41,16.414]
[1645202060776,6.0,91.499,91.411,0.25]
[1645202060979,6.0,91.499,91.402,2.6293831]
[1645202061177,1.5275895,91.524,91.403,6.0]
[1645202061380,51.92995772,91.523,91.411,2.6293831]
[1645202061585,51.92995772,91.523,91.412,6.25]
[1645202061784,51.92995772,91.523,91.413,110.1]
[1645202061980,51.92995772,91.523,91.414,31.2111]
[1645202061981,110.1,91.522,91.414,31.2111]
[1645202062481,16.4077,91.52,91.43,16.4107]
[1645202062683,16.4077,91.52,91.431,0.25]
[1645202063381,110.1,91.519,91.44,16.4103]
[1645202063683,16.4113,91.5,91.44,16.4103]
[1645202063880,16.4113,91.5,91.42,54.6988]
[1645202063881,43.52264668,91.499,91.42,54.6988]
[1645202064100,43.52264668,91.499,91.421,0.25]
[1645202064299,6.0,91.498,91.421,0.25]
[1645202064801,110.1,91.497,91.42,54.6988]
[1645202064998,110.1,91.489,91.414,24.9611]
[1645202065801,2.6293831,91.488,91.414,24.9611]
[1645202066001,0.25,91.487,91.414,24.9611]
[1645202066400,16.4157,91.48,91.414,24.9611]
[1645202066604,41.16297015,91.479,91.414,24.9611]
[1645202067402,16.4163,91.47,91.41,16.4157]
[1645202068402,110.1,91.469,91.4,16.4179]
[1645202068601,16.4182,91.46,91.4,16.4179]
[1645202068800,53.77606172,91.459,91.4,16.4179]
[1645202069000,53.77606172,91.459,91.401,0.25]
[1645202069202,6.0,91.458,91.401,0.25]
[1645202070203,6.0,91.458,91.41,16.416]
[1645202070401,6.0,91.458,91.411,0.25]
[1645202070605,47.2201895,91.509,91.411,0.25]
[1645202070803,6.0,91.498,91.411,0.25]
[1645202071202,16.4114,91.5,91.412,8.0953831]
[1645202071203,6.0,91.497,91.412,8.0953831]
[1645202071405,42.35187237,91.496,91.42,16.4127]
[1645202071606,6.0,91.495,91.421,0.25]